lending/lending_fUSD_20250224
["ID","MTS","AMOUNT","RATE_DAILY","PERIOD"]
[354240783,1740359452011,-500.0,0.0001652,2]
[354240784,1740359452021,-500.0,0.0001652,2]
[354240785,1740359452032,-500.0,0.0001652,2]
[354240786,1740359452042,-500.0,0.0001652,2]
[354240787,1740359452053,-500.0,0.0001652,2]
[354240788,1740359452065,-500.0,0.0001652,2]
[354240789,1740359452075,-1270.47,0.0001652,2]
[354240790,1740359452086,-677.44,0.0001652,2]
[354240791,1740359452097,-500.0,0.0001652,2]
[354240792,1740359452108,-500.0,0.0001652,2]
[354240793,1740359452120,-500.0,0.0001652,2]
[354240794,1740359452131,-218.97102607,0.0001652,2]
[354240795,1740359452146,-281.02897393,0.0001652,2]
[354240796,1740359452156,-293.59575589,0.0001652,2]
[354240797,1740359452170,-206.40424411,0.0001652,2]
[354240798,1740359452180,-500.0,0.0001652,2]
[354240799,1740359452190,-411.93575737,0.0001652,2]
[354240800,1740359452202,-88.06424263,0.0001652,2]
[354240801,1740359452218,-500.0,0.0001652,2]
[354240802,1740359452228,-2417.89,0.0001652,2]
[354240803,1740359452238,-486.49644684,0.0001652,2]
[354240804,1740359452250,-13.50355316,0.0001652,2]
[354240805,1740359452260,-214.52872408,0.0001652,2]
[354240806,1740359452270,-500.0,0.0001652,2]
[354240807,1740359452280,-500.0,0.0001652,2]
[354240808,1740359452289,-1028.88,0.0001652,2]
[354240809,1740359452569,-547.21,0.0001652,2]
[354240810,1740359452586,-613.11,0.0001652,2]
[354240811,1740359452595,-947.86,0.0001652,2]
[354240812,1740359452604,-718.88,0.0001652,2]
[354240813,1740359452614,-500.0,0.0001652,2]
[354240814,1740359452623,-500.0,0.0001652,2]
[354240815,1740359452632,-500.0,0.0001652,2]
[354240816,1740359452641,-500.0,0.0001652,2]
[354240817,1740359452650,-607.09,0.0001652,2]
[354240818,1740359452660,-500.0,0.0001652,2]
[354240819,1740359452669,-498.10379725,0.0001652,2]
[354240820,1740359452678,-500.0,0.0001652,2]
[354240821,1740359452687,-500.0,0.0001652,2]
[354240822,1740359452696,-703.9,0.0001652,2]
[354240823,1740359452705,-500.0,0.0001652,2]
[354240824,1740359452718,-500.0,0.0001652,2]
[354240825,1740359452728,-521.31,0.0001652,2]
[354240826,1740359452737,-500.0,0.0001652,2]
[354240827,1740359452747,-581.74,0.0001652,2]
[354240828,1740359452760,-500.0,0.0001652,2]
[354240829,1740359452770,-432.33327208,0.0001652,2]
[354240831,1740359768956,555.55555,0.0002,120]
[354240832,1740359777140,555.55555,0.0002,120]
[354240839,1740360320003,318.87668803,9e-05,2]
[354240840,1740360351302,4022.62107079,0.0002,120]
[354240847,1740360632112,-181.23863571,0.00010858,2]
[354240848,1740360632122,-300.0,0.00010957,2]
[354240849,1740360632132,-289.559234,0.00010958,2]
[354240850,1740360632143,-344.152012,0.00010958,2]
[354240851,1740360632153,-159.980964,0.00010958,2]
[354240852,1740360632164,-270.55368,0.00010958,2]
[354240853,1740360632174,-159.980962,0.00010958,2]
[354240854,1740360632184,-159.980963,0.00010958,2]
[354240855,1740360632194,-270.553652,0.00010958,2]
[354240856,1740360632204,-159.980962,0.00010958,2]
[354240857,1740360632214,-270.553652,0.00010958,2]
[354240858,1740360632230,-159.980963,0.00010958,2]
[354240859,1740360632240,-270.553652,0.00010958,2]
[354240860,1740360632251,-1053.8452648,0.00011,2]
[354240861,1740360637673,-662.69526299,0.00011,2]
[354240863,1740360637682,-289.559234,0.00011041,2]
[354240865,1740360637691,-344.152012,0.00011041,2]
[354240867,1740360637701,-289.559234,0.00011123,2]
[354240868,1740360637710,-344.152012,0.00011123,2]
[354240869,1740360637719,-289.559234,0.00011205,2]
[354240870,1740360637729,-344.152012,0.00011205,2]
[354240871,1740360637739,-289.559234,0.00011287,2]
[354240872,1740360637748,-344.152012,0.00011287,2]
[354240873,1740360637757,-289.559234,0.00011369,2]
[354240874,1740360637765,-344.152012,0.00011369,2]
[354240875,1740360637775,-150.0,0.00011944,2]
[354240876,1740360637784,-150.0,0.00012035,2]
[354240877,1740360637794,-420.0,0.00012041,2]
[354240878,1740360637805,-150.0,0.00012054,2]
[354240879,1740360637814,-550.0,0.00013,2]
[354240880,1740360637824,-1091.38,0.00013121,2]
[354240881,1740360637833,-3975.68503992,0.0001337,2]
[354240882,1740360637846,-335.09534055,0.0001337,2]
[354240883,1740360637881,-5762.77907015,0.0001337,2]
[354240884,1740360637953,-3849.95246331,0.0001337,2]
[354240900,1740360639862,-36241.33070111,0.0001337,2]
[354240901,1740360639872,-8657.12218949,0.0001345,2]
[354240902,1740360639881,-373.0,0.00014329,2]
[354240903,1740360639893,-715.12,0.00014573,2]
[354240904,1740360639902,-250.47516223,0.00014854,2]
[354240905,1740360639911,-223.0843647,0.000149,2]
[354240906,1740360639921,-150.0,0.00014918,2]
[354240907,1740360639930,-150.00000001,0.00014918,2]
[354240908,1740360639940,-1000.0,0.00015078,2]
[354240909,1740360639948,-23900.0,0.0001509,2]
[354240910,1740360639958,-197.09,0.00015198,2]
[354240911,1740360639967,-150.0,0.00015371,2]
[354240912,1740360639979,-293.71,0.00015375,2]
[354240913,1740360639988,-1091.38,0.00015385,2]
[354240914,1740360639997,-200.0,0.00015488,2]
[354240915,1740360640007,-1347.0,0.000155,2]
[354240916,1740360640016,-1048.68,0.0001559,2]
[354240917,1740360640025,-250.0,0.0001559,2]
[354240918,1740360640035,-404.5,0.00015597,2]
[354240919,1740360640045,-150.0,0.00015614,2]
[354240920,1740360640054,-301.73,0.00015778,2]
[354240921,1740360640063,-349.43267624,0.00015945,2]
[354240922,1740360640073,-150.0,0.0001599,2]
[354240923,1740360640082,-349.43267624,0.00016,2]
[354240924,1740360640091,-150.0,0.00016027,2]
[354240925,1740360640100,-349.43267624,0.00016082,2]
[354240926,1740360640110,-1007.8,0.00016145,2]
[354240927,1740360640119,-349.43267624,0.00016164,2]
[354240928,1740360640129,-150.0,0.00016177,2]
[354240929,1740360640138,-150.0,0.0001619,2]
[354240930,1740360640147,-349.43267624,0.00016247,2]
[354240931,1740360640156,-150.0,0.00016275,2]
[354240932,1740360640165,-4000.0,0.000163,2]
[354240933,1740360640175,-349.43267624,0.00016329,2]
[354240934,1740360640184,-315.55196886,0.00016338,2]
[354240935,1740360640193,-157.00959901,0.00016338,2]
[354240936,1740360640202,-3974.6137,0.00016338,2]
[354240937,1740360640211,-190.3252749,0.0001635,2]
[354240938,1740360640221,-4000.0,0.0001635,2]
[354240939,1740360640231,-715.12,0.00016394,2]
[354240940,1740360640240,-184.2745074,0.000164,2]
[354240941,1740360640252,-386.66041379,0.000164,2]
[354240942,1740360640264,-349.43267624,0.00016411,2]
[354240943,1740360640275,-2989.0,0.00016414,9]
[354240944,1740360640287,-157.00959901,0.00016419,2]
[354240945,1740360640299,-217.04158566,0.0001642,2]
[354240947,1740360640311,-288.92439114,0.00016428,2]
[354240949,1740360640321,-441.31,0.00016428,2]
[354240951,1740360640331,-150.0,0.00016431,2]
[354240952,1740360640341,-500.0,0.00016437,2]
[354240953,1740360640352,-500.0,0.00016437,2]
[354240954,1740360640363,-504.22330116,0.00016437,2]
[354240955,1740360640375,-500.0,0.00016437,2]
[354240956,1740360640386,-500.0,0.00016437,2]
[354240957,1740360640398,-500.0,0.00016437,2]
[354240958,1740360640408,-500.0,0.00016437,2]
[354240959,1740360640420,-620.14162512,0.00016437,2]
[354240960,1740360640431,-500.0,0.00016437,2]
[354240961,1740360640443,-500.0,0.00016437,2]
[354240962,1740360640455,-500.0,0.00016437,2]
[354240963,1740360640466,-431.64092807,0.00016437,2]
[354240964,1740360640477,-500.0,0.00016437,2]
[354240965,1740360640487,-500.0,0.00016437,2]
[354240966,1740360640497,-500.0,0.00016437,2]
[354240967,1740360640509,-500.0,0.00016437,2]
[354240968,1740360640520,-500.0,0.00016437,2]
[354240969,1740360640531,-500.0,0.00016437,2]
[354240970,1740360640542,-500.0,0.00016438,2]
[354240971,1740360640553,-292.97155484,0.00016438,2]
[354240972,1740360640564,-289.559234,0.00016438,2]
[354240973,1740360640575,-500.0,0.00016438,2]
[354240974,1740360640587,-796.14,0.00016438,2]
[354240975,1740360640599,-500.0,0.00016438,2]
[354240976,1740360640611,-542.01,0.00016438,2]
[354240977,1740360640622,-500.0,0.00016438,2]
[354240978,1740360640632,-500.0,0.00016438,2]
[354240979,1740360640643,-500.0,0.00016438,2]
[354240980,1740360640654,-500.0,0.00016438,2]
[354240981,1740360640664,-683.69,0.00016438,2]
[354240982,1740360640676,-500.0,0.00016438,2]
[354240983,1740360640687,-344.152012,0.00016438,2]
[354240984,1740360640698,-500.0,0.00016438,2]
[354240985,1740360640709,-500.0,0.00016438,2]
[354240986,1740360640720,-500.0,0.00016438,2]
[354240987,1740360640730,-338.31624606,0.00016438,2]
[354240988,1740360640742,-500.0,0.00016438,2]
[354240989,1740360640753,-500.0,0.00016438,2]
[354240990,1740360640764,-500.0,0.00016438,2]
[354240991,1740360640775,-521.4,0.00016438,2]
[354240992,1740360640787,-500.0,0.00016438,2]
[354240993,1740360640799,-584.92,0.00016438,2]
[354240994,1740360640813,-500.0,0.00016438,2]
[354240995,1740360640824,-500.0,0.00016438,2]
[354240996,1740360640835,-500.0,0.00016438,2]
[354240997,1740360640846,-542.98,0.00016438,2]
[354240998,1740360640858,-500.0,0.00016438,2]
[354240999,1740360640868,-500.0,0.00016438,2]
[354241000,1740360640878,-500.0,0.00016438,2]
[354241001,1740360640889,-500.0,0.00016438,2]
[354241002,1740360640899,-500.0,0.00016438,2]
[354241003,1740360640910,-500.0,0.00016438,2]
[354241004,1740360640921,-500.0,0.00016438,2]
[354241005,1740360640933,-563.37,0.00016438,2]
[354241006,1740360640946,-500.0,0.00016438,2]
[354241007,1740360640956,-500.0,0.00016438,2]
[354241008,1740360640966,-737.74,0.00016438,2]
[354241009,1740360640977,-500.0,0.00016438,2]
[354241010,1740360640988,-500.0,0.00016438,2]
[354241011,1740360640998,-500.0,0.00016438,2]
[354241012,1740360641008,-324.62156941,0.00016438,2]
[354241013,1740360641019,-500.0,0.00016438,2]
[354241014,1740360641031,-500.0,0.00016438,2]
[354241015,1740360641042,-500.0,0.00016438,2]
[354241016,1740360641053,-500.0,0.00016438,2]
[354241017,1740360641065,-643.5,0.00016438,2]
[354241018,1740360641075,-333.45877121,0.00016438,2]
[354241019,1740360641085,-500.0,0.00016438,2]
[354241020,1740360641095,-500.0,0.00016438,2]
[354241021,1740360641105,-500.0,0.00016438,2]
[354241022,1740360641115,-500.0,0.00016438,2]
[354241023,1740360641125,-500.0,0.00016438,2]
[354241024,1740360641135,-500.0,0.00016438,2]
[354241025,1740360641146,-280.95204263,0.00016438,2]
[354241026,1740360641156,-742.18,0.00016438,2]
[354241027,1740360641167,-500.0,0.00016438,2]
[354241028,1740360641178,-500.0,0.00016438,2]
[354241029,1740360641189,-500.0,0.00016438,2]
[354241030,1740360641200,-509.76,0.00016438,2]
[354241031,1740360641215,-500.0,0.00016438,2]
[354241032,1740360641225,-500.0,0.00016438,2]
[354241033,1740360641237,-500.0,0.00016438,2]
[354241034,1740360641247,-500.0,0.00016438,2]
[354241035,1740360641258,-500.0,0.00016438,2]
[354241036,1740360641269,-583.9,0.00016438,2]
[354241037,1740360641279,-500.0,0.00016438,2]
[354241038,1740360641289,-500.0,0.00016438,2]
[354241039,1740360641299,-500.0,0.00016438,2]
[354241040,1740360641309,-973.32,0.00016438,2]
[354241041,1740360641319,-500.0,0.00016438,2]
[354241042,1740360641330,-500.0,0.00016438,2]
[354241043,1740360641341,-500.0,0.00016438,2]
[354241044,1740360641352,-500.0,0.00016438,2]
[354241045,1740360641362,-500.0,0.00016438,2]
[354241046,1740360641373,-500.0,0.00016438,2]
[354241047,1740360641383,-500.0,0.00016438,2]
[354241048,1740360641394,-500.0,0.00016438,2]
[354241049,1740360641404,-500.0,0.00016438,2]
[354241050,1740360641415,-500.0,0.00016438,2]
[354241051,1740360641425,-500.0,0.00016438,2]
[354241052,1740360641435,-500.0,0.00016438,2]
[354241053,1740360641445,-500.0,0.00016438,2]
[354241054,1740360641455,-600.19,0.00016438,2]
[354241055,1740360641466,-662.66,0.00016438,2]
[354241056,1740360641476,-151.95888569,0.00016438,2]
[354241057,1740360641486,-500.0,0.00016438,2]
[354241058,1740360641496,-500.0,0.00016438,2]
[354241059,1740360641506,-500.0,0.00016438,2]
[354241060,1740360641516,-500.0,0.00016438,2]
[354241061,1740360641526,-500.0,0.00016438,2]
[354241062,1740360641536,-500.0,0.00016438,2]
[354241063,1740360641546,-500.0,0.00016438,2]
[354241064,1740360641556,-500.0,0.00016438,2]
[354241065,1740360641567,-500.0,0.00016438,2]
[354241066,1740360641577,-500.0,0.00016438,2]
[354241067,1740360641587,-500.0,0.00016438,2]
[354241068,1740360641598,-500.0,0.00016438,2]
[354241069,1740360641608,-500.0,0.00016438,2]
[354241070,1740360641618,-500.0,0.00016438,2]
[354241071,1740360641629,-500.0,0.00016438,2]
[354241072,1740360641639,-470.47685807,0.00016438,2]
[354241073,1740360641649,-500.0,0.00016438,2]
[354241074,1740360641660,-501.19,0.00016438,2]
[354241075,1740360641670,-500.0,0.00016438,2]
[354241076,1740360641680,-500.0,0.00016438,2]
[354241077,1740360641690,-500.0,0.00016438,2]
[354241078,1740360641701,-500.0,0.00016438,2]
[354241079,1740360641711,-500.0,0.00016438,2]
[354241080,1740360641722,-1219.68,0.00016438,2]
[354241081,1740360641734,-500.0,0.00016438,2]
[354241082,1740360641745,-500.0,0.00016438,2]
[354241083,1740360641756,-508.96093645,0.00016438,2]
[354241084,1740360641767,-500.0,0.00016438,2]
[354241085,1740360641777,-500.0,0.00016438,2]
[354241086,1740360641788,-500.0,0.00016438,2]
[354241087,1740360641799,-500.0,0.00016438,2]
[354241088,1740360641811,-1296.97,0.00016438,2]
[354241089,1740360641821,-500.0,0.00016438,2]
[354241090,1740360641832,-1261.52,0.00016438,2]
[354241091,1740360641843,-500.0,0.00016438,2]
[354241092,1740360641853,-500.0,0.00016438,2]
[354241093,1740360641864,-944.16,0.00016438,2]
[354241094,1740360641874,-500.0,0.00016438,2]
[354241095,1740360641885,-1056.4,0.00016438,2]
[354241096,1740360641895,-1188.7,0.00016438,2]
[354241097,1740360641905,-500.0,0.00016438,2]
[354241098,1740360641915,-500.0,0.00016438,2]
[354241099,1740360641926,-676.41,0.00016438,2]
[354241100,1740360641936,-1878.39,0.00016438,2]
[354241101,1740360641946,-500.0,0.00016438,2]
[354241102,1740360641957,-221.83587336,0.00016438,2]
[354241103,1740360641967,-500.0,0.00016438,2]
[354241104,1740360641978,-500.0,0.00016438,2]
[354241105,1740360641989,-500.0,0.00016438,2]
[354241106,1740360641999,-685.32,0.00016438,2]
[354241107,1740360642009,-657.51,0.00016438,2]
[354241108,1740360642019,-500.0,0.00016438,2]
[354241109,1740360642029,-1494.2,0.00016438,2]
[354241110,1740360642039,-500.0,0.00016438,2]
[354241111,1740360642049,-500.0,0.00016438,2]
[354241112,1740360642060,-500.0,0.00016438,2]
[354241113,1740360642070,-500.0,0.00016438,2]
[354241114,1740360642080,-500.0,0.00016438,2]
[354241115,1740360642090,-800.48,0.00016438,2]
[354241116,1740360642100,-500.0,0.00016438,2]
[354241117,1740360642111,-675.75,0.00016438,2]
[354241118,1740360642122,-689.0,0.00016438,2]
[354241119,1740360642132,-1469.75,0.00016438,2]
[354241120,1740360642142,-500.0,0.00016438,2]
[354241121,1740360642152,-1168.6,0.00016438,2]
[354241122,1740360642163,-500.0,0.00016438,2]
[354241123,1740360642173,-500.0,0.00016438,2]
[354241124,1740360642183,-500.0,0.00016438,2]
[354241125,1740360642193,-638.87,0.00016438,2]
[354241126,1740360642203,-1000.0,0.00016438,2]
[354241127,1740360642213,-882.5,0.00016438,2]
[354241128,1740360642223,-636.23,0.00016438,2]
[354241129,1740360642235,-500.0,0.00016438,2]
[354241130,1740360642245,-1031.86,0.00016438,2]
[354241131,1740360642255,-500.0,0.00016438,2]
[354241132,1740360642266,-958.81,0.00016438,2]
[354241133,1740360642276,-500.0,0.00016438,2]
[354241134,1740360642286,-500.0,0.00016438,2]
[354241135,1740360642296,-506.22,0.00016438,2]
[354241136,1740360642306,-500.0,0.00016438,2]
[354241137,1740360642316,-1406.88,0.00016438,2]
[354241138,1740360642326,-621.93,0.00016438,2]
[354241139,1740360642337,-503.82,0.00016438,2]
[354241140,1740360642347,-1044.77,0.00016438,2]
[354241141,1740360642357,-562.44,0.00016438,2]
[354241142,1740360642367,-500.0,0.00016438,2]
[354241143,1740360642378,-548.01,0.00016438,2]
[354241144,1740360642388,-500.0,0.00016438,2]
[354241145,1740360642398,-695.7,0.00016438,2]
[354241146,1740360642409,-905.49,0.00016438,2]
[354241147,1740360642419,-500.0,0.00016438,2]
[354241148,1740360642430,-508.89,0.00016438,2]
[354241149,1740360642440,-562.96,0.00016438,2]
[354241150,1740360642450,-675.25,0.00016438,2]
[354241151,1740360642460,-500.0,0.00016438,2]
[354241152,1740360642471,-500.0,0.00016438,2]
[354241153,1740360642482,-1017.88,0.00016438,2]
[354241154,1740360642492,-500.0,0.00016438,2]
[354241155,1740360642502,-900.37,0.00016438,2]
[354241156,1740360642512,-500.0,0.00016438,2]
[354241157,1740360642522,-615.86,0.00016438,2]
[354241158,1740360642532,-797.48,0.00016438,2]
[354241159,1740360642542,-582.99,0.00016438,2]
[354241160,1740360642553,-500.0,0.00016438,2]
[354241161,1740360642562,-247.16340168,0.00016438,2]
[354241162,1740360642573,-500.0,0.00016438,2]
[354241163,1740360642583,-500.0,0.00016438,2]
[354241164,1740360642593,-596.85,0.00016438,2]
[354241165,1740360642604,-500.0,0.00016438,2]
[354241166,1740360642614,-500.0,0.00016438,2]
[354241168,1740360642625,-920.11,0.00016438,2]
[354241170,1740360642635,-520.34,0.00016438,2]
[354241172,1740360642645,-983.35,0.00016438,2]
[354241174,1740360642656,-1264.29,0.00016438,2]
[354241177,1740360642666,-547.67,0.00016438,2]
[354241180,1740360642676,-641.2,0.00016438,2]
[354241183,1740360642685,-603.3,0.00016438,2]
[354241185,1740360642695,-500.0,0.00016438,2]
[354241187,1740360642705,-500.0,0.00016438,2]
[354241189,1740360642716,-586.47,0.00016438,2]
[354241190,1740360642725,-500.76,0.00016438,2]
[354241192,1740360642737,-734.61,0.00016438,2]
[354241193,1740360642747,-500.0,0.00016438,2]
[354241195,1740360642757,-507.11513431,0.00016438,2]
[354241196,1740360642766,-500.0,0.00016438,2]
[354241197,1740360642776,-500.0,0.00016438,2]
[354241198,1740360642786,-500.0,0.00016438,2]
[354241199,1740360642796,-894.08,0.00016438,2]
[354241200,1740360642809,-874.56,0.00016438,2]
[354241201,1740360642819,-603.86,0.00016438,2]
[354241202,1740360642829,-630.95,0.00016438,2]
[354241203,1740360642838,-511.3389512,0.00016438,2]
[354241204,1740360642848,-500.0,0.00016438,2]
[354241205,1740360642858,-500.0,0.00016438,2]
[354241206,1740360642868,-500.0,0.00016438,2]
[354241207,1740360642879,-1007.22,0.00016438,2]
[354241208,1740360642888,-500.0,0.00016438,2]
[354241209,1740360642898,-601.98,0.00016438,2]
[354241210,1740360642908,-500.0,0.00016438,2]
[354241211,1740360642918,-583.38,0.00016438,2]
[354241212,1740360642927,-500.0,0.00016438,2]
[354241213,1740360642937,-500.0,0.00016438,2]
[354241214,1740360642947,-500.0,0.00016438,2]
[354241215,1740360642957,-500.0,0.00016438,2]
[354241216,1740360642967,-500.0,0.00016438,2]
[354241217,1740360642977,-500.0,0.00016438,2]
[354241218,1740360642988,-500.0,0.00016438,2]
[354241219,1740360642998,-500.0,0.00016438,2]
[354241220,1740360643008,-500.0,0.00016438,2]
[354241221,1740360643018,-500.0,0.00016438,2]
[354241222,1740360643028,-618.82,0.00016438,2]
[354241223,1740360643038,-500.0,0.00016438,2]
[354241224,1740360643047,-1416.17,0.00016438,2]
[354241225,1740360643057,-519.93,0.00016438,2]
[354241226,1740360643067,-500.0,0.00016438,2]
[354241227,1740360643078,-927.68,0.00016438,2]
[354241228,1740360643087,-510.00496611,0.00016438,2]
[354241230,1740360643098,-500.0,0.00016438,2]
[354241232,1740360643108,-500.0,0.00016438,2]
[354241234,1740360643118,-685.06,0.00016438,2]
[354241236,1740360643128,-661.57,0.00016438,2]
[354241238,1740360643138,-603.11,0.00016438,2]
[354241240,1740360643148,-500.0,0.00016438,2]
[354241242,1740360643158,-500.0,0.00016438,2]
[354241244,1740360643169,-507.22,0.00016438,2]
[354241246,1740360643180,-500.0,0.00016438,2]
[354241248,1740360643190,-500.0,0.00016438,2]
[354241251,1740360643200,-742.49,0.00016438,2]
[354241254,1740360643211,-899.66,0.00016438,2]
[354241257,1740360643222,-500.0,0.00016438,2]
[354241259,1740360643233,-500.0,0.00016438,2]
[354241261,1740360643243,-590.04,0.00016438,2]
[354241263,1740360643254,-500.0,0.00016438,2]
[354241265,1740360643264,-500.0,0.00016438,2]
[354241267,1740360643274,-1162.81,0.00016438,2]
[354241269,1740360643284,-530.13,0.00016438,2]
[354241271,1740360643294,-631.31,0.00016438,2]
[354241274,1740360643305,-940.68,0.00016438,2]
[354241276,1740360643315,-500.0,0.00016438,2]
[354241278,1740360643325,-582.01,0.00016438,2]
[354241279,1740360643335,-1043.11,0.00016438,2]
[354241280,1740360643345,-513.98,0.00016438,2]
[354241281,1740360643356,-500.0,0.00016438,2]
[354241282,1740360643367,-1047.31,0.00016438,2]
[354241283,1740360643377,-516.35,0.00016438,2]
[354241284,1740360643387,-758.63,0.00016438,2]
[354241285,1740360643397,-500.0,0.00016438,2]
[354241286,1740360643407,-469.14348437,0.00016438,2]
[354241287,1740360643417,-500.0,0.00016438,2]
[354241288,1740360643427,-500.0,0.00016438,2]
[354241289,1740360643436,-500.0,0.00016438,2]
[354241290,1740360643446,-693.58,0.00016438,2]
[354241291,1740360643456,-514.89,0.00016438,2]
[354241292,1740360643466,-993.88,0.00016438,2]
[354241293,1740360643476,-723.08,0.00016438,2]
[354241294,1740360643487,-562.02,0.00016438,2]
[354241295,1740360643497,-500.0,0.00016438,2]
[354241296,1740360643507,-500.0,0.00016438,2]
[354241297,1740360643517,-500.0,0.00016438,2]
[354241298,1740360643527,-500.0,0.00016438,2]
[354241299,1740360643536,-556.5,0.00016438,2]
[354241300,1740360643546,-500.0,0.00016438,2]
[354241301,1740360643556,-500.0,0.00016438,2]
[354241302,1740360643567,-1150.69,0.00016438,2]
[354241303,1740360643577,-500.0,0.00016438,2]
[354241304,1740360643587,-500.0,0.00016438,2]
[354241305,1740360643597,-817.78,0.00016438,2]
[354241306,1740360643608,-500.0,0.00016438,2]
[354241307,1740360643618,-500.0,0.00016438,2]
[354241308,1740360643628,-500.0,0.00016438,2]
[354241309,1740360643639,-500.0,0.00016438,2]
[354241310,1740360643649,-605.93,0.00016438,2]
[354241311,1740360643659,-500.0,0.00016438,2]
[354241312,1740360643669,-1164.59,0.00016438,2]
[354241313,1740360643679,-500.0,0.00016438,2]
[354241314,1740360643689,-500.0,0.00016438,2]
[354241315,1740360643699,-500.0,0.00016438,2]
[354241316,1740360643709,-541.01,0.00016438,2]
[354241317,1740360643718,-500.0,0.00016438,2]
[354241318,1740360644248,-216.3617949,0.00016438,2]
[354241319,1740360644277,-1007.93,0.00016438,2]
[354241320,1740360644293,-572.52,0.00016438,2]
[354241321,1740360644304,-500.0,0.00016438,2]
[354241322,1740360644313,-738.8,0.00016438,2]
[354241323,1740360644323,-909.53,0.00016438,2]
[354241324,1740360644332,-500.0,0.00016438,2]
[354241325,1740360644341,-500.0,0.00016438,2]
[354241326,1740360644351,-500.0,0.00016438,2]
[354241327,1740360644361,-500.0,0.00016438,2]
[354241328,1740360644371,-500.0,0.00016438,2]
[354241329,1740360644380,-500.0,0.00016438,2]
[354241330,1740360644390,-910.56,0.00016438,2]
[354241331,1740360644399,-1395.54,0.00016438,2]
[354241332,1740360644409,-500.0,0.00016438,2]
[354241333,1740360644419,-500.0,0.00016438,2]
[354241334,1740360644429,-500.0,0.00016438,2]
[354241335,1740360644439,-500.0,0.00016438,2]
[354241336,1740360644448,-500.0,0.00016438,2]
[354241337,1740360644458,-500.0,0.00016438,2]
[354241338,1740360644468,-1370.76,0.00016438,2]
[354241339,1740360644477,-942.69,0.00016438,2]
[354241340,1740360644488,-501.99635662,0.00016438,2]
[354241341,1740360644497,-533.26,0.00016438,2]
[354241342,1740360644506,-997.26,0.00016438,2]
[354241343,1740360644515,-609.82,0.00016438,2]
[354241344,1740360644524,-500.0,0.00016438,2]
[354241345,1740360644534,-684.32,0.00016438,2]
[354241346,1740360644543,-923.75,0.00016438,2]
[354241347,1740360644552,-503.97093074,0.00016438,2]
[354241348,1740360644561,-500.0,0.00016438,2]
[354241349,1740360644570,-500.0,0.00016438,2]
[354241350,1740360644580,-1200.63,0.00016438,2]
[354241351,1740360644589,-733.84,0.00016438,2]
[354241352,1740360644598,-500.0,0.00016438,2]
[354241353,1740360644607,-2259.85,0.00016438,2]
[354241354,1740360644616,-746.37,0.00016438,2]
[354241355,1740360644625,-500.0,0.00016438,2]
[354241356,1740360644635,-1460.79,0.00016438,2]
[354241357,1740360644644,-500.0,0.00016438,2]
[354241358,1740360644653,-1701.15,0.00016438,2]